[Event "Polish Youth Ekstraliga 2022"]
[Site "Lublin"]
[Date "2022.07.01"]
[Round "7.14"]
[White "Meers, Hubert"]
[Black "Chyzy, Jakub"]
[Result "1/2-1/2"]
[ECO "C28"]
[WhiteElo "2013"]
[BlackElo "2191"]
[Annotator "RC"]
[PlyCount "60"]
[EventDate "2022.06.24"]
[EventType "team-tourn"]
[EventCountry "POL"]
[SourceTitle "playchess.com"]
[Source "ChessBase"]
[SourceQuality "1"]
[TimeControl "40/5400+30:1800+30"]

1. e4 {[%emt 0:00:01]} e5 {[%emt 0:00:41]} 2. Nc3 {[%emt 0:00:03]} Nf6 {[%emt 0:00:10]} 3. Bc4 {[%emt 0:00:05]} Nc6 {[%emt 0:00:04]} 4. d3 {[%emt 0:00:05]} Na5 {[%emt 0:00:03]} 5. Nge2 {[%emt 0:00:03]} Nxc4 {[%emt 0:00:24]} 6. dxc4 {[%emt 0:00:04]} Be7 {[%emt 0:00:27]} 7. O-O {[%emt 0:00:17]} d6 {[%emt 0:00:36]} 8. Qd3 {[%emt 0:00:04]} c6 {[%emt 0:00:12]} 9. Be3 {[%emt 0:05:01]} O-O {[%emt 0:00:26]} 10. Ng3 {[%emt 0:01:14]} Qc7 {[%emt 0:00:51]} 11. Rad1 {[%emt 0:00:32]} Rd8 {[%emt 0:12:26]} 12. b3 {[%emt 0:00:34]} Be6 {[%emt 0:00:42]} 13. f4 {[%emt 0:02:17]} d5 {[%emt 0:08:29]} 14. cxd5 {[%emt 0:04:43]} cxd5 {[%emt 0:00:23]} 15. exd5 {[%emt 0:03:35]} Bxd5 {[%emt 0:06:47]} 16. fxe5 {[%emt 0:13:07]} Bxg2 {[%emt 0:03:44]} 17. exf6 {[%emt 0:00:06]} Rxd3 {[%emt 0:25:31]} 18. Rxd3 {[%emt 0:00:06]} Bb4 {[%emt 0:11:26]} 19. Kxg2 {[%emt 0:13:02]} Bxc3 {[%emt 0:00:10]} 20. fxg7 {[%emt 0:00:03]} Rd8 {[%emt 0:04:30]} 21. Rxd8+ {[%emt 0:08:25]} Qxd8 {[%emt 0:00:06]} 22. Nf5 {[%emt 0:00:08]} Bxg7 {[%emt 0:05:48]} 23. Rf3 {[%emt 0:06:01]} Qd1 {[%emt 0:05:57]} 24. c4 {[%emt 0:05:10]} Be5 {[%emt 0:02:43]} 25. Nh6+ {[%emt 0:03:32]} Kg7 {[%emt 0:00:28]} 26. Rxf7+ {[%emt 0:01:00]} Kg6 {[%emt 0:00:10]} 27. Rf2 {[%emt 0:00:02]} Bd4 {[%emt 0:07:05]} 28. Bxd4 {[%emt 0:00:05]} Qxd4 {[%emt 0:00:27]} 29. Nf5 {[%emt 0:00:28]} Qe4+ {[%emt 0:00:06]} 30. Kg3 {[%emt 0:00:30]} Qe5+ {[%emt 0:00:11]} 1/2-1/2

[Event "Polish Youth Ekstraliga 2022"]
[Site "Lublin"]
[Date "2022.07.01"]
[Round "7.15"]
[White "Krawczyk, Flawian"]
[Black "Zielonka, Adam"]
[Result "1/2-1/2"]
[ECO "B46"]
[WhiteElo "2212"]
[BlackElo "1988"]
[Annotator "RC"]
[PlyCount "78"]
[EventDate "2022.06.24"]
[EventType "team-tourn"]
[EventCountry "POL"]
[SourceTitle "playchess.com"]
[Source "ChessBase"]
[SourceQuality "1"]
[TimeControl "40/5400+30:1800+30"]

1. e4 {[%emt 0:00:24]} c5 {[%emt 0:00:05]} 2. Nf3 {[%emt 0:00:36]} e6 {[%emt 0:00:05]} 3. d4 {[%emt 0:00:43]} cxd4 {[%emt 0:00:05]} 4. Nxd4 {[%emt 0:00:05]} Nc6 {[%emt 0:00:06]} 5. Nc3 {[%emt 0:00:14]} a6 {[%emt 0:00:02]} 6. Be2 {[%emt 0:00:22]} d6 {[%emt 0:00:05]} 7. O-O {[%emt 0:00:52]} Nf6 {[%emt 0:00:01]} 8. Be3 {[%emt 0:00:52]} Be7 {[%emt 0:00:04]} 9. f4 {[%emt 0:02:53]} O-O {[%emt 0:00:04]} 10. Kh1 {[%emt 0:04:17]} Qc7 {[%emt 0:00:21]} 11. Qe1 {[%emt 0:00:37]} Nxd4 {[%emt 0:12:46]} 12. Bxd4 {[%emt 0:00:22]} b5 {[%emt 0:01:33]} 13. a3 {[%emt 0:00:55]} Bb7 {[%emt 0:01:02]} 14. Qg3 {[%emt 0:00:09]} g6 {[%emt 0:01:55]} 15. Bf3 {[%emt 0:22:06]} d5 {[%emt 0:19:18]} 16. Be5 {[%emt 0:04:33]} Qc5 {[%emt 0:07:02]} 17. exd5 {[%emt 0:04:34]} Nxd5 {[%emt 0:04:07]} 18. Qh3 {[%emt 0:04:54]} Nxc3 {[%emt 0:06:40]} 19. Bxb7 {[%emt 0:01:43]} Ra7 {[%emt 0:00:14]} 20. Qh6 {[%emt 0:03:31]} f6 {[%emt 0:00:19]} 21. Bxc3 {[%emt 0:00:34]} Rxb7 {[%emt 0:00:07]} 22. Qh3 {[%emt 0:01:11]} Qf5 {[%emt 0:01:26]} 23. Qxf5 {[%emt 0:01:33]} gxf5 {[%emt 0:00:25]} 24. Rfd1 {[%emt 0:00:38]} Kf7 {[%emt 0:00:22]} 25. Rd3 {[%emt 0:02:26]} Rd8 {[%emt 0:00:52]} 26. Rxd8 {[%emt 0:05:24]} Bxd8 {[%emt 0:00:09]} 27. Rd1 {[%emt 0:00:03]} Be7 {[%emt 0:00:30]} 28. g3 {[%emt 0:00:04]} Ke8 {[%emt 0:01:19]} 29. Kg2 {[%emt 0:03:46]} Rd7 {[%emt 0:00:28]} 30. Re1 {[%emt 0:01:43]} Rd6 {[%emt 0:00:51]} 31. Kf3 {[%emt 0:01:19]} Kd7 {[%emt 0:00:25]} 32. h3 {[%emt 0:01:23]} h5 {[%emt 0:00:15]} 33. g4 {[%emt 0:03:59]} hxg4+ {[%emt 0:01:06]} 34. hxg4 {[%emt 0:00:01]} fxg4+ {[%emt 0:00:09]} 35. Kxg4 {[%emt 0:00:05]} Rc6 {[%emt 0:07:08]} 36. Re3 {[%emt 0:03:45]} Rc4 {[%emt 0:03:10]} 37. Rd3+ {[%emt 0:03:46]} Kc6 {[%emt 0:07:18]} 38. b3 {[%emt 0:13:44]} Re4 {[%emt 0:00:21]} 39. Kf3 {[%emt 0:00:16]} f5 {[%emt 0:00:11]} 1/2-1/2

[Event "Polish Youth Ekstraliga 2022"]
[Site "Lublin"]
[Date "2022.07.01"]
[Round "7.16"]
[White "Liskiewicz, Jakub"]
[Black "Sowinski, Pawel"]
[Result "0-1"]
[ECO "E46"]
[WhiteElo "1839"]
[BlackElo "2060"]
[Annotator "RC"]
[PlyCount "64"]
[EventDate "2022.06.24"]
[EventType "team-tourn"]
[EventCountry "POL"]
[SourceTitle "playchess.com"]
[Source "ChessBase"]
[SourceQuality "1"]
[TimeControl "40/5400+30:1800+30"]

1. d4 {[%emt 0:00:02]} Nf6 {[%emt 0:01:11]} 2. c4 {[%emt 0:00:10]} e6 {[%emt 0:00:28]} 3. Nc3 {[%emt 0:00:09]} Bb4 {[%emt 0:00:06]} 4. e3 {[%emt 0:00:07]} O-O {[%emt 0:00:06]} 5. Nge2 {[%emt 0:00:12]} Re8 {[%emt 0:00:47]} 6. a3 {[%emt 0:00:27]} Bf8 {[%emt 0:00:02]} 7. Ng3 {[%emt 0:00:28]} d5 {[%emt 0:03:22]} 8. cxd5 {[%emt 0:00:48]} exd5 {[%emt 0:00:02]} 9. Bd3 {[%emt 0:00:11]} g6 {[%emt 0:13:13]} 10. O-O {[%emt 0:02:46]} h5 {[%emt 0:11:46]} 11. h3 {[%emt 0:05:17]} Nc6 {[%emt 0:08:25]} 12. Qf3 {[%emt 0:04:12]} Bg7 {[%emt 0:03:47]} 13. b4 {[%emt 0:03:45]} Be6 {[%emt 0:02:50]} 14. Na4 {[%emt 0:08:59]} h4 {[%emt 0:11:10]} 15. Ne2 {[%emt 0:01:55]} Ne4 {[%emt 0:09:31]} 16. Nf4 {[%emt 0:04:03]} Bf5 {[%emt 0:05:59]} 17. Nc5 {[%emt 0:05:24]} a5 {[%emt 0:07:21]} 18. Nxb7 {[%emt 0:07:35]} Qc8 {[%emt 0:00:00]} 19. Nxa5 {[%emt 0:00:55]} Nxa5 {[%emt 0:00:32]} 20. bxa5 {[%emt 0:00:18]} c5 {[%emt 0:05:36]} 21. Nxd5 {[%emt 0:10:55]} Qd8 {[%emt 0:04:04]} 22. Nf4 {[%emt 0:05:31]} cxd4 {[%emt 0:00:09]} 23. Rb1 {[%emt 0:05:18]} Rxa5 {[%emt 0:01:35]} 24. exd4 {[%emt 0:02:42]} Bxd4 {[%emt 0:00:51]} 25. Rb5 {[%emt 0:17:40]} Nxf2 {[%emt 0:02:26]} 26. Kh2 Bxd3 {[%emt 0:01:37]} 27. Nxd3 {[%emt 0:04:53]} Rxb5 {[%emt 0:00:04]} 28. Nxf2 {[%emt 0:00:10]} Rf5 {[%emt 0:00:06]} 29. Qg4 {[%emt 0:06:14]} Bxf2 {[%emt 0:00:28]} 30. Rd1 {[%emt 0:00:44]} Bg3+ {[%emt 0:00:02]} 31. Kh1 {[%emt 0:00:22]} Qxd1+ {[%emt 0:00:06]} 32. Qxd1 {[%emt 0:00:09]} Re1+ {[%emt 0:00:03]} 0-1

[Event "Polish Youth Ekstraliga 2022"]
[Site "Lublin"]
[Date "2022.07.01"]
[Round "7.17"]
[White "Wikar, Martyna"]
[Black "Zabrzanska, Weronika"]
[Result "1-0"]
[ECO "C47"]
[WhiteElo "2197"]
[BlackElo "1882"]
[Annotator "RC"]
[PlyCount "53"]
[EventDate "2022.06.24"]
[EventType "team-tourn"]
[EventCountry "POL"]
[SourceTitle "playchess.com"]
[Source "ChessBase"]
[SourceQuality "1"]
[TimeControl "40/5400+30:1800+30"]

1. e4 {[%emt 0:00:05]} e5 {[%emt 0:00:11]} 2. Nf3 {[%emt 0:00:10]} Nc6 {[%emt 0:00:07]} 3. Nc3 {[%emt 0:00:13]} Nf6 {[%emt 0:01:28]} 4. a3 {[%emt 0:00:09]} d5 {[%emt 0:02:24]} 5. exd5 {[%emt 0:00:08]} Nxd5 {[%emt 0:00:15]} 6. Bb5 {[%emt 0:00:06]} Nxc3 {[%emt 0:11:08]} 7. bxc3 {[%emt 0:00:39]} e4 {[%emt 0:12:19]} 8. Qe2 {[%emt 0:04:28]} Qe7 {[%emt 0:11:30]} 9. Nd4 {[%emt 0:00:48]} Bd7 {[%emt 0:01:46]} 10. Nxc6 {[%emt 0:08:09]} bxc6 {[%emt 0:03:19]} 11. Bc4 {[%emt 0:00:26]} g6 {[%emt 0:03:49]} 12. a4 {[%emt 0:03:02]} f5 {[%emt 0:11:58]} 13. O-O {[%emt 0:02:06]} Be6 {[%emt 0:01:48]} 14. Rb1 {[%emt 0:13:04]} Kf7 {[%emt 0:05:39]} 15. Rb7 {[%emt 0:01:54]} Bd5 {[%emt 0:01:17]} 16. Bxd5+ {[%emt 0:02:36]} cxd5 {[%emt 0:00:10]} 17. Qb5 {[%emt 0:00:55]} Qd6 {[%emt 0:04:42]} 18. c4 {[%emt 0:03:21]} d4 {[%emt 0:03:55]} 19. Bb2 {[%emt 0:05:30]} Be7 {[%emt 0:02:24]} 20. c5 {[%emt 0:09:11]} Qd5 {[%emt 0:05:53]} 21. d3 {[%emt 0:06:01]} c6 {[%emt 0:05:42]} 22. Qb4 {[%emt 0:02:13]} Rhd8 {[%emt 0:00:49]} 23. dxe4 {[%emt 0:01:57]} fxe4 {[%emt 0:01:08]} 24. Rd1 {[%emt 0:02:55]} Kf8 {[%emt 0:04:08]} 25. Bxd4 {[%emt 0:05:32]} a5 {[%emt 0:01:35]} 26. Qd2 {[%emt 0:03:44]} Rd7 {[%emt 0:02:30]} 27. Rxd7 {[%emt 0:00:18]} 1-0

[Event "Polish Youth Ekstraliga 2022"]
[Site "Lublin"]
[Date "2022.07.01"]
[Round "7.18"]
[White "Polakiewicz, Blanka"]
[Black "Natoli, Alessia"]
[Result "0-1"]
[ECO "B13"]
[WhiteElo "1151"]
[BlackElo "1680"]
[Annotator "NA RC"]
[PlyCount "106"]
[EventDate "2022.06.24"]
[EventType "team-tourn"]
[EventCountry "POL"]
[SourceTitle "playchess.com"]
[Source "ChessBase"]
[SourceQuality "1"]
[TimeControl "40/5400+30:1800+30"]

1. e4 {[%emt 0:00:02]} c6 {[%emt 0:00:18]} 2. d4 {[%emt 0:00:06]} d5 {[%emt 0:00:20]} 3. exd5 {[%emt 0:00:11]} cxd5 {[%emt 0:00:06]} 4. Bd3 {[%emt 0:00:07]} Nc6 {[%emt 0:00:42]} 5. c3 {[%emt 0:00:08]} Nf6 {[%emt 0:00:29]} 6. h3 {[%emt 0:00:07]} g6 {[%emt 0:00:59]} 7. Nf3 {[%emt 0:00:11]} Bf5 {[%emt 0:03:13]} 8. O-O {[%emt 0:01:06]} Bxd3 {[%emt 0:02:39]} 9. Qxd3 {[%emt 0:00:12]} Bg7 {[%emt 0:01:29]} 10. Bf4 {[%emt 0:01:15]} Qb6 {[%emt 0:03:37]} 11. Qc2 {[%emt 0:04:15]} O-O {[%emt 0:05:37]} 12. Nbd2 {[%emt 0:03:57]} Rfc8 {[%emt 0:03:15]} 13. Qb3 {[%emt 0:07:33]} Qa6 {[%emt 0:03:27]} 14. Ne5 {[%emt 0:06:46]} e6 {[%emt 0:07:50]} 15. Rfe1 {[%emt 0:08:36]} Nh5 {[%emt 0:07:33]} 16. Nxc6 {[%emt 0:10:29]} Rxc6 {[%emt 0:01:19]} 17. Bh2 {[%emt 0:07:12]} Rac8 {[%emt 0:03:00]} 18. Nf3 {[%emt 0:02:26]} Rb6 {[%emt 0:02:41]} 19. Qc2 {[%emt 0:01:23]} Qb5 {[%emt 0:01:13]} 20. Rab1 {[%emt 0:01:29]} Qc4 {[%emt 0:03:19]} 21. g4 {[%emt 0:07:17]} Nf6 {[%emt 0:03:16]} 22. a3 {[%emt 0:02:56]} Ne4 {[%emt 0:05:31]} 23. Nd2 {[%emt 0:03:50]} Qxd4 {[%emt 0:03:02]} 24. Nxe4 {[%emt 0:01:48]} dxe4 {[%emt 0:00:09]} 25. Qxe4 {[%emt 0:00:45]} Qxe4 {[%emt 0:00:14]} 26. Rxe4 {[%emt 0:00:02]} Rxc3 {[%emt 0:02:27]} 27. Rd1 {[%emt 0:06:46]} Rc8 {[%emt 0:00:59]} 28. b4 {[%emt 0:01:21]} Bf6 {[%emt 0:06:08]} 29. Rd3 {[%emt 0:02:23]} Rc3 {[%emt 0:08:19]} 30. Rxc3 {[%emt 0:02:17]} Bxc3 {[%emt 0:00:03]} 31. Rc4 {[%emt 0:00:42]} Rc6 {[%emt 0:04:09]} 32. Rxc6 {[%emt 0:01:58]} bxc6 {[%emt 0:00:02]} 33. Bd6 {[%emt 0:01:06]} Bd4 {[%emt 0:02:36]} 34. Kf1 {[%emt 0:00:55]} f5 {[%emt 0:01:22]} 35. f3 {[%emt 0:03:35]} Kf7 {[%emt 0:00:29]} 36. g5 {[%emt 0:01:54]} e5 {[%emt 0:00:21]} 37. Ke2 {[%emt 0:00:48]} Ke6 {[%emt 0:00:06]} 38. Bf8 {[%emt 0:01:34]} Kd5 {[%emt 0:00:06]} 39. Kd3 {[%emt 0:01:02]} e4+ {[%emt 0:00:08]} 40. fxe4+ {[%emt 0:00:00]} fxe4+ {[%emt 0:00:00]} 41. Kc2 {[%emt 0:01:09]} Kc4 {[%emt 0:00:26]} 42. Bd6 {[%emt 0:01:23]} e3 {[%emt 0:00:21]} 43. a4 {[%emt 0:02:27]} Bc3 {[%emt 0:00:17]} 44. Kd1 {[%emt 0:00:17]} Bxb4 {[%emt 0:00:05]} 45. Bxb4 {[%emt 0:00:30]} Kxb4 {[%emt 0:00:05]} 46. Ke2 {[%emt 0:00:06]} Kxa4 {[%emt 0:00:08]} 47. Kxe3 {[%emt 0:00:05]} c5 {[%emt 0:00:10]} 48. Kd2 {[%emt 0:00:05]} Kb3 {[%emt 0:00:06]} 49. Kc1 {[%emt 0:00:06]} c4 {[%emt 0:00:05]} 50. Kb1 {[%emt 0:00:07]} c3 {[%emt 0:00:04]} 51. h4 {[%emt 0:00:08]} c2+ {[%emt 0:00:10]} 52. Kc1 {[%emt 0:00:18]} a5 {[%emt 0:00:04]} 53. Kd2 {[%emt 0:00:04]} Kb2 {[%emt 0:00:08]} 0-1

[Event "Polish Youth Ekstraliga 2022"]
[Site "Lublin"]
[Date "2022.07.01"]
[Round "7.19"]
[White "Ciborowski, Konrad Jr"]
[Black "Kazmierowski, Tymon"]
[Result "1/2-1/2"]
[ECO "A45"]
[WhiteElo "1927"]
[BlackElo "2020"]
[Annotator "RC"]
[PlyCount "74"]
[EventDate "2022.06.24"]
[EventType "team-tourn"]
[EventCountry "POL"]
[SourceTitle "playchess.com"]
[Source "ChessBase"]
[SourceQuality "1"]
[TimeControl "40/5400+30:1800+30"]

1. d4 {[%emt 0:00:01]} Nf6 {[%emt 0:00:05]} 2. Nc3 {[%emt 0:00:03]} d5 {[%emt 0:00:04]} 3. Bf4 {[%emt 0:00:02]} a6 {[%emt 0:00:07]} 4. e3 {[%emt 0:00:04]} h6 {[%emt 0:00:10]} 5. Nf3 {[%emt 0:00:49]} e6 {[%emt 0:00:10]} 6. Ne5 {[%emt 0:04:47]} Bd6 {[%emt 0:04:06]} 7. g4 {[%emt 0:00:21]} Nc6 {[%emt 0:11:23]} 8. Qf3 {[%emt 0:03:01]} Bxe5 {[%emt 0:06:16]} 9. dxe5 {[%emt 0:00:05]} Nd7 {[%emt 0:00:07]} 10. O-O-O {[%emt 0:00:57]} g5 {[%emt 0:16:20]} 11. Bg3 {[%emt 0:00:13]} Ndxe5 {[%emt 0:01:02]} 12. Qe2 {[%emt 0:00:32]} f6 {[%emt 0:18:51]} 13. h4 {[%emt 0:13:29]} Qe7 {[%emt 0:08:20]} 14. hxg5 {[%emt 0:01:46]} fxg5 {[%emt 0:00:12]} 15. f4 {[%emt 0:00:04]} Nf7 {[%emt 0:01:02]} 16. Bg2 {[%emt 0:07:09]} Bd7 {[%emt 0:05:21]} 17. Bxd5 {[%emt 0:00:13]} O-O-O {[%emt 0:00:24]} 18. Bc4 {[%emt 0:00:15]} Nd6 {[%emt 0:19:31]} 19. fxg5 {[%emt 0:13:02]} Nxc4 {[%emt 0:00:54]} 20. Qxc4 {[%emt 0:01:30]} hxg5 {[%emt 0:00:11]} 21. Rh5 {[%emt 0:00:56]} Rxh5 {[%emt 0:03:43]} 22. gxh5 {[%emt 0:00:06]} e5 {[%emt 0:00:36]} 23. Nd5 {[%emt 0:02:49]} Qe6 {[%emt 0:00:07]} 24. h6 {[%emt 0:01:56]} Rh8 {[%emt 0:02:03]} 25. Rh1 {[%emt 0:00:06]} Rxh6 {[%emt 0:00:35]} 26. Rxh6 {[%emt 0:00:46]} Qxh6 {[%emt 0:00:01]} 27. Bxe5 {[%emt 0:00:10]} Be6 {[%emt 0:00:51]} 28. Kd2 {[%emt 0:03:12]} Bxd5 {[%emt 0:01:03]} 29. Qxd5 {[%emt 0:00:07]} Nxe5 {[%emt 0:00:36]} 30. Qxe5 {[%emt 0:01:26]} Kd7 {[%emt 0:00:28]} 31. Ke2 {[%emt 0:01:06]} Qh5+ {[%emt 0:00:28]} 32. Kf2 {[%emt 0:01:03]} Qh4+ {[%emt 0:00:22]} 33. Kf3 {[%emt 0:01:21]} Qh5+ {[%emt 0:00:36]} 34. Kg3 {[%emt 0:01:44]} Qh4+ {[%emt 0:00:09]} 35. Kg2 {[%emt 0:00:52]} Qg4+ {[%emt 0:00:24]} 36. Kf2 {[%emt 0:00:04]} Qh4+ {[%emt 0:00:14]} 37. Kg2 {[%emt 0:00:47]} Qg4+ {[%emt 0:00:06]} 1/2-1/2

[Event "Polish Youth Ekstraliga 2022"]
[Site "Lublin"]
[Date "2022.07.01"]
[Round "7.20"]
[White "Grzadka, Artur"]
[Black "Wydmanski, Szymon"]
[Result "1/2-1/2"]
[ECO "A41"]
[WhiteElo "1718"]
[BlackElo "1815"]
[Annotator "NA RC"]
[PlyCount "85"]
[EventDate "2022.06.24"]
[EventType "team-tourn"]
[EventCountry "POL"]
[SourceTitle "playchess.com"]
[Source "ChessBase"]
[SourceQuality "1"]
[TimeControl "40/5400+30:1800+30"]

1. d4 {[%emt 0:00:05]} d6 {[%emt 0:00:05]} 2. c4 {[%emt 0:00:08]} e5 {[%emt 0:00:06]} 3. e3 {[%emt 0:03:09]} Nd7 {[%emt 0:00:11]} 4. Nf3 {[%emt 0:01:42]} e4 {[%emt 0:00:21]} 5. Nfd2 {[%emt 0:00:14]} f5 {[%emt 0:00:41]} 6. Nc3 {[%emt 0:00:50]} Ngf6 {[%emt 0:00:10]} 7. Be2 {[%emt 0:01:37]} Be7 {[%emt 0:00:20]} 8. f3 {[%emt 0:03:16]} exf3 {[%emt 0:11:11]} 9. Bxf3 {[%emt 0:00:50]} O-O {[%emt 0:08:14]} 10. O-O {[%emt 0:01:01]} c6 {[%emt 0:00:19]} 11. e4 {[%emt 0:06:57]} Qb6 {[%emt 0:02:18]} 12. Nb3 {[%emt 0:01:22]} fxe4 {[%emt 0:20:36]} 13. Nxe4 {[%emt 0:03:08]} Nxe4 {[%emt 0:01:12]} 14. Bxe4 {[%emt 0:00:38]} Rxf1+ {[%emt 0:04:11]} 15. Qxf1 $11 {[%emt 0:00:52]} Nf6 {[%emt 0:01:57]} 16. Bf5 {[%emt 0:15:52]} Kh8 {[%emt 0:20:00]} 17. Bg5 {[%emt 0:03:03]} Nd5 {[%emt 0:04:10]} 18. Bd2 {[%emt 0:22:40]} Nf6 {[%emt 0:10:12]} 19. Re1 {[%emt 0:06:25]} Qc7 {[%emt 0:01:31]} 20. Bg5 {[%emt 0:03:26]} Bxf5 {[%emt 0:02:08]} 21. Qxf5 {[%emt 0:00:12]} Rf8 {[%emt 0:02:08]} 22. Qe6 {[%emt 0:00:40]} Bd8 {[%emt 0:00:33]} 23. Bf4 {[%emt 0:00:36]} Qf7 {[%emt 0:04:34]} 24. Bxd6 {[%emt 0:01:19]} Qxe6 {[%emt 0:01:55]} 25. Rxe6 {[%emt 0:00:04]} Rf7 {[%emt 0:01:23]} 26. Be5 {[%emt 0:02:39]} h6 {[%emt 0:00:37]} 27. Bb8 {[%emt 0:02:26]} Kh7 {[%emt 0:00:58]} 28. h3 {[%emt 0:01:28]} Nh5 {[%emt 0:01:37]} 29. Re8 {[%emt 0:00:49]} Bh4 {[%emt 0:00:29]} 30. Re4 {[%emt 0:02:01]} Bf2+ {[%emt 0:00:41]} 31. Kh2 {[%emt 0:00:05]} g5 {[%emt 0:00:39]} 32. Nd2 {[%emt 0:01:48]} Nf6 {[%emt 0:00:13]} 33. Re2 {[%emt 0:01:29]} Bxd4 {[%emt 0:00:16]} 34. Nf3 {[%emt 0:00:22]} Bb6 {[%emt 0:00:48]} 35. Ne5 {[%emt 0:04:37]} Re7 {[%emt 0:00:40]} 36. Bd6 {[%emt 0:00:49]} Re6 {[%emt 0:00:11]} 37. c5 {[%emt 0:00:04]} Ba5 {[%emt 0:00:42]} 38. Rf2 {[%emt 0:00:25]} Ne4 {[%emt 0:00:36]} 39. Rf7+ {[%emt 0:00:35]} Kg8 {[%emt 0:00:14]} 40. Rf8+ {[%emt 0:00:00]} Kg7 {[%emt 0:00:00]} 41. Rf7+ {[%emt 0:07:13]} Kg8 {[%emt 0:00:27]} 42. Rf8+ {[%emt 0:00:04]} Kg7 {[%emt 0:00:14]} 43. Rf7+ {[%emt 0:00:08]} 1/2-1/2

[Event "Polish Youth Ekstraliga 2022"]
[Site "Lublin"]
[Date "2022.07.01"]
[Round "7.21"]
[White "Wolak, Maciej"]
[Black "Przybylski, Jan"]
[Result "0-1"]
[ECO "B80"]
[WhiteElo "1316"]
[BlackElo "1694"]
[Annotator "NA RC"]
[PlyCount "56"]
[EventDate "2022.06.24"]
[EventType "team-tourn"]
[EventCountry "POL"]
[SourceTitle "playchess.com"]
[Source "ChessBase"]
[SourceQuality "1"]
[TimeControl "40/5400+30:1800+30"]

1. e4 {[%emt 0:00:03]} c5 {[%emt 0:00:04]} 2. Nf3 {[%emt 0:00:07]} e6 {[%emt 0:00:07]} 3. d4 {[%emt 0:00:06]} cxd4 {[%emt 0:00:06]} 4. Nxd4 {[%emt 0:00:12]} Nf6 {[%emt 0:00:06]} 5. Nc3 {[%emt 0:01:20]} d6 {[%emt 0:00:12]} 6. Be3 {[%emt 0:01:00]} Be7 {[%emt 0:00:27]} 7. f3 {[%emt 0:00:47]} a6 {[%emt 0:00:52]} 8. Qd2 {[%emt 0:00:19]} b5 {[%emt 0:03:40]} 9. g4 {[%emt 0:00:52]} Bb7 {[%emt 0:03:51]} 10. g5 {[%emt 0:18:46]} Nfd7 {[%emt 0:04:04]} 11. h4 {[%emt 0:05:09]} Nc6 {[%emt 0:02:22]} 12. Rg1 {[%emt 0:23:12]} Nde5 {[%emt 0:03:51]} 13. Be2 {[%emt 0:13:59]} Rc8 {[%emt 0:18:47]} 14. O-O-O {[%emt 0:03:31]} Na5 {[%emt 0:04:23]} 15. h5 {[%emt 0:01:19]} Nac4 {[%emt 0:02:06]} 16. Bxc4 {[%emt 0:00:38]} Nxc4 {[%emt 0:00:36]} 17. Qe2 {[%emt 0:00:54]} b4 {[%emt 0:12:13]} 18. Na4 {[%emt 0:01:02]} Qa5 {[%emt 0:06:02]} 19. b3 {[%emt 0:04:08]} g6 {[%emt 0:03:31]} 20. f4 {[%emt 0:09:08]} Bxe4 {[%emt 0:14:35]} 21. Bf2 {[%emt 0:03:45]} d5 {[%emt 0:03:26]} 22. hxg6 {[%emt 0:10:33]} hxg6 {[%emt 0:00:18]} 23. Qg4 {[%emt 0:00:35]} Rh2 {[%emt 0:12:57]} 24. Nxe6 {[%emt 0:00:23]} Rxf2 {[%emt 0:00:42]} 25. Ng7+ {[%emt 0:00:16]} Kd8 {[%emt 0:00:14]} 26. f5 {[%emt 0:00:50]} Rxc2+ {[%emt 0:02:56]} 27. Kb1 {[%emt 0:00:01]} Nd2+ {[%emt 0:00:46]} 28. Ka1 {[%emt 0:00:45]} Bc5 {[%emt 0:00:28]} 0-1